[Event "SWE-ch Juniors 2018"]
[Site "Ronneby"]
[Date "2018.07.07"]
[Round "8"]
[White "Storme, Isak"]
[Black "Sorensen, Hampus"]
[Result "1/2-1/2"]
[ECO "E53"]
[WhiteElo "2277"]
[BlackElo "2204"]
[Annotator "NA"]
[PlyCount "58"]
[EventDate "2018.06.30"]
[EventType "tourn"]
[EventCountry "SWE"]
[SourceTitle "playchess.com"]
[Source "ChessBase"]
[SourceQuality "1"]
[TimeControl "40/5400+30:1800+30"]

1. d4 {[%emt 0:00:00]} d5 {[%emt 0:00:00]} 2. c4 {[%emt 0:00:00]} e6 {[%emt 0:00:00]} 3. Nc3 {[%emt 0:00:10]} Bb4 {[%emt 0:00:06]} 4. e3 {[%emt 0:04:12]} Nf6 {[%emt 0:01:27]} 5. Nf3 {[%emt 0:00:28]} O-O {[%emt 0:02:06]} 6. Bd3 {[%emt 0:01:16]} c5 {[%emt 0:14:11]} 7. O-O {[%emt 0:00:24]} cxd4 {[%emt 0:04:40]} 8. exd4 {[%emt 0:00:06]} dxc4 {[%emt 0:00:21]} 9. Bxc4 {[%emt 0:00:08]} Nc6 {[%emt 0:00:32]} 10. Bg5 {[%emt 0:03:42]} h6 {[%emt 0:03:17]} 11. Bh4 {[%emt 0:02:14]} Be7 {[%emt 0:01:29]} 12. Re1 {[%emt 0:16:24]} a6 {[%emt 0:06:22]} 13. Bb3 {[%emt 0:13:10]} Nh5 {[%emt 0:09:52]} 14. Bxe7 {[%emt 0:01:09]} Nxe7 {[%emt 0:00:15]} 15. d5 {[%emt 0:01:17]} Nxd5 {[%emt 0:06:58]} 16. Nxd5 {[%emt 0:02:54]} exd5 {[%emt 0:00:30]} 17. Qxd5 {[%emt 0:02:01]} Qxd5 {[%emt 0:01:17]} 18. Bxd5 {[%emt 0:00:06]} Nf4 $11 {[%emt 0:02:54]} 19. Be4 {[%emt 0:06:15]} Rb8 {[%emt 0:04:58]} 20. g3 {[%emt 0:01:48]} Ne6 {[%emt 0:02:35]} 21. Rad1 {[%emt 0:01:50]} Nc5 {[%emt 0:01:44]} 22. Bd5 {[%emt 0:02:20]} Be6 {[%emt 0:01:54]} 23. Bxe6 {[%emt 0:04:06]} Nxe6 {[%emt 0:00:11]} 24. Nd4 {[%emt 0:01:43]} Nxd4 {[%emt 0:00:39]} 25. Rxd4 {[%emt 0:00:08]} Rfd8 {[%emt 0:01:42]} 26. Red1 {[%emt 0:03:16]} Rxd4 {[%emt 0:00:14]} 27. Rxd4 {[%emt 0:00:06]} Rc8 {[%emt 0:00:51]} 28. Rd7 {[%emt 0:00:06]} b5 {[%emt 0:00:07]} 29. Rd6 {[%emt 0:00:44]} Rc2 {[%emt 0:00:10]} 1/2-1/2

[Event "SWE-ch Juniors 2018"]
[Site "Ronneby"]
[Date "2018.07.07"]
[Round "8"]
[White "Crevatin, Leo"]
[Black "Forsberg, Andre"]
[Result "1-0"]
[ECO "E38"]
[WhiteElo "2224"]
[BlackElo "2025"]
[Annotator "NA"]
[PlyCount "39"]
[EventDate "2018.06.30"]
[EventType "tourn"]
[EventCountry "SWE"]
[SourceTitle "playchess.com"]
[Source "ChessBase"]
[SourceQuality "1"]
[TimeControl "40/5400+30:1800+30"]

1. d4 {[%emt 0:00:00]} Nf6 {[%emt 0:00:00]} 2. c4 {[%emt 0:00:00]} e6 {[%emt 0:00:00]} 3. Nc3 {[%emt 0:00:00]} Bb4 {[%emt 0:00:00]} 4. Qc2 {[%emt 0:00:00]} c5 {[%emt 0:00:22]} 5. dxc5 {[%emt 0:00:00]} Bxc5 {[%emt 0:01:52]} 6. Bf4 {[%emt 0:01:45]} Nc6 {[%emt 0:02:42]} 7. e3 {[%emt 0:00:30]} Nh5 {[%emt 0:02:26]} 8. Bg3 {[%emt 0:00:42]} Nxg3 {[%emt 0:00:34]} 9. hxg3 {[%emt 0:00:07]} h6 {[%emt 0:00:09]} 10. Nf3 {[%emt 0:00:12]} b6 {[%emt 0:00:22]} 11. a3 {[%emt 0:00:54]} Bb7 {[%emt 0:01:30]} 12. Bd3 {[%emt 0:08:27]} Rc8 {[%emt 0:02:20]} 13. Rd1 {[%emt 0:05:31]} Ne7 {[%emt 0:04:07]} 14. O-O {[%emt 0:06:39]} O-O {[%emt 0:01:25]} 15. b4 {[%emt 0:01:53]} Bd6 {[%emt 0:00:25]} 16. Bh7+ {[%emt 0:01:33]} Kh8 {[%emt 0:00:07]} 17. Rxd6 {[%emt 0:02:06]} f5 {[%emt 0:00:07]} 18. Ne5 {[%emt 0:03:30]} Ba8 {[%emt 0:08:53]} 19. Rxd7 {[%emt 0:00:19]} Qe8 {[%emt 0:00:09]} 20. Rxe7 {[%emt 0:00:04]} 1-0

[Event "SWE-ch Juniors 2018"]
[Site "Ronneby"]
[Date "2018.07.07"]
[Round "8"]
[White "Carlsson, Ludvig"]
[Black "Kucuksari, Kaan"]
[Result "0-1"]
[ECO "A01"]
[WhiteElo "2169"]
[BlackElo "2296"]
[Annotator "NA"]
[PlyCount "188"]
[EventDate "2018.06.30"]
[EventType "tourn"]
[EventCountry "SWE"]
[SourceTitle "playchess.com"]
[Source "ChessBase"]
[SourceQuality "1"]
[TimeControl "40/5400+30:1800+30"]

1. b3 {[%emt 0:00:00]} Nf6 {[%emt 0:00:00]} 2. Bb2 {[%emt 0:00:00]} e6 {[%emt 0:00:00]} 3. Nf3 {[%emt 0:01:59]} b6 {[%emt 0:00:06]} 4. g3 {[%emt 0:00:38]} Bb7 {[%emt 0:00:04]} 5. Bg2 {[%emt 0:00:07]} Be7 {[%emt 0:00:03]} 6. O-O {[%emt 0:00:11]} O-O {[%emt 0:00:06]} 7. d3 {[%emt 0:03:00]} d6 {[%emt 0:02:15]} 8. c4 {[%emt 0:06:19]} c5 {[%emt 0:00:46]} 9. Nbd2 {[%emt 0:02:31]} Nc6 {[%emt 0:04:12] A30: Symmetrical English: Double Fianchetto and Hedgehog} 10. a3 {[%emt 0:02:18]} Nd7 {[%emt 0:06:58]} (10... a6 11. Qc2 Rc8 12. Bc3 d5 13. e3 b5 14. Rfd1 Qb6 15. Rac1 Rfd8 16. Bb2 {½-½ (140) Bacallao Alonso,Y (2526)-Alvarez Pedraza,A (2482) Santa Clara 2014}) 11. e3 $146 {[%emt 0:05:05]} ({Predecessor:} 11. Qc2 a6 12. Rab1 Rc8 13. Ba1 d5 14. e3 f5 15. Qa2 Kh8 16. d4 Bf6 17. dxc5 bxc5 {1-0 (45) Calle Soto,M (2122)-Esplana,C (2338) Lima 2002}) 11... f5 {[%emt 0:01:26]} 12. b4 {[%emt 0:03:29]} Bf6 {[%emt 0:05:25]} 13. Bxf6 {[%emt 0:09:30]} Nxf6 {[%emt 0:01:54]} 14. b5 {[%emt 0:03:46]} Ne5 {[%emt 0:06:40]} 15. Nxe5 {[%emt 0:03:31]} Bxg2 {[%emt 0:00:11]} 16. Nf7 {[%emt 0:00:11]} Rxf7 {[%emt 0:05:21]} 17. Kxg2 {[%emt 0:00:10]} d5 {[%emt 0:07:36]} 18. Nf3 {[%emt 0:03:20]} Qd6 {[%emt 0:02:28]} 19. Qb3 {[%emt 0:03:36]} Ng4 {[%emt 0:08:19]} 20. h3 {[%emt 0:04:08]} Ne5 {[%emt 0:00:25]} 21. Nxe5 {[%emt 0:00:42]} Qxe5 {[%emt 0:00:02]} 22. cxd5 {[%emt 0:00:19]} exd5 {[%emt 0:03:13]} 23. d4 {[%emt 0:02:06]} cxd4 {[%emt 0:01:58]} 24. exd4 {[%emt 0:01:16]} Qxd4 {[%emt 0:00:13]} 25. Rfd1 {[%emt 0:00:18]} Qc4 {[%emt 0:04:21]} 26. Qxc4 {[%emt 0:00:53]} dxc4 {[%emt 0:00:06]} 27. Rac1 $15 {[%emt 0:00:28]} Rc8 {[%emt 0:01:28]} 28. Kf3 {[%emt 0:04:25]} c3 {[%emt 0:02:22]} 29. Rd6 {[%emt 0:02:46]} Rfc7 {[%emt 0:00:46]} 30. Kf4 {[%emt 0:01:33]} Rc4+ {[%emt 0:07:13]} 31. Kxf5 {[%emt 0:00:11]} R4c5+ {[%emt 0:01:42]} 32. Ke6 {[%emt 0:00:10]} Rxb5 {[%emt 0:00:09]} 33. Rxc3 {[%emt 0:00:13]} Re8+ {[%emt 0:02:16]} 34. Kd7 {[%emt 0:02:08]} Rbe5 {[%emt 0:00:01]} 35. Rdd3 {[%emt 0:07:59]} Rf8 {[%emt 0:01:33]} 36. Rc8 {[%emt 0:03:04]} Ref5 {[%emt 0:06:37]} 37. Rxf8+ {[%emt 0:00:41]} Kxf8 {[%emt 0:00:30]} 38. f4 {[%emt 0:00:11]} Kf7 {[%emt 0:00:10]} 39. Kc7 {[%emt 0:03:45]} Ra5 {[%emt 0:00:41]} 40. g4 {[%emt 0:00:38]} h5 {[%emt 0:03:15]} 41. Rd7+ {[%emt 0:34:13]} Kf6 {[%emt 0:35:09]} 42. Rd6+ {[%emt 0:00:08]} Kf7 {[%emt 0:00:05]} 43. Rd7+ {[%emt 0:00:04]} Kg6 {[%emt 0:01:11]} 44. Rd6+ {[%emt 0:00:06]} Kh7 {[%emt 0:00:04]} 45. Rd3 {[%emt 0:00:08]} Ra4 {[%emt 0:06:10]} 46. Kb7 {[%emt 0:01:24]} b5 {[%emt 0:02:41]} 47. Rd5 {[%emt 0:04:13]} hxg4 {[%emt 0:00:59]} 48. Rxb5 {[%emt 0:02:27]} g3 {[%emt 0:00:00]} 49. Rb3 {[%emt 0:00:00]} g2 {[%emt 0:00:00]} 50. Rg3 {[%emt 0:00:00]} Rxa3 {[%emt 0:00:00]} 51. Rxg2 {[%emt 0:00:00]} a5 {[%emt 0:00:00]} 52. Kc6 {[%emt 0:00:00]} Rxh3 {[%emt 0:00:00]} 53. Kd5 {[%emt 0:00:00]} Rh5+ {[%emt 0:00:29]} 54. Ke4 {[%emt 0:00:00]} a4 {[%emt 0:00:03]} 55. Ra2 {[%emt 0:00:00]} Ra5 {[%emt 0:00:04]} 56. Ra3 {[%emt 0:00:00]} Kg6 {[%emt 0:00:03]} 57. Rg3+ {[%emt 0:00:00]} Kf6 {[%emt 0:00:01]} 58. Ra3 {[%emt 0:00:00]} Ke6 {[%emt 0:01:06]} 59. Kd4 {[%emt 0:00:00]} Ra8 {[%emt 0:00:40]} 60. Ke4 {[%emt 0:00:00]} Ra7 {[%emt 0:05:14]} 61. Kf3 {[%emt 0:00:00]} Kd5 {[%emt 0:00:50]} 62. Kg4 {[%emt 0:00:00]} Kc4 {[%emt 0:00:08]} 63. Kg5 {[%emt 0:00:00]} Kb4 {[%emt 0:00:06]} 64. Ra1 {[%emt 0:00:00]} a3 65. Kg6 {[%emt 0:00:00]} a2 {[%emt 0:03:33]} 66. f5 {[%emt 0:00:00]} Kc4 {[%emt 0:00:27]} 67. Rc1+ {[%emt 0:00:00]} Kd4 {[%emt 0:00:01]} 68. Ra1 {[%emt 0:00:00]} Ke4 {[%emt 0:00:09]} 69. Re1+ {[%emt 0:00:00]} Kf4 {[%emt 0:00:01]} 70. Rf1+ {[%emt 0:00:00]} Kg4 {[%emt 0:00:05]} 71. Rg1+ {[%emt 0:00:00]} Kf3 {[%emt 0:00:01]} 72. Rf1+ {[%emt 0:00:00]} Ke4 {[%emt 0:00:04]} 73. Re1+ {[%emt 0:00:00]} Kd5 {[%emt 0:00:03]} 74. Rd1+ {[%emt 0:00:00]} Ke5 {[%emt 0:00:01]} 75. Re1+ {[%emt 0:00:00]} Kd6 {[%emt 0:00:06]} 76. Rd1+ {[%emt 0:00:00]} Kc5 {[%emt 0:00:06]} 77. Rc1+ {[%emt 0:00:00]} Kd6 {[%emt 0:00:05]} 78. Rd1+ {[%emt 0:00:00]} Ke7 {[%emt 0:00:13]} 79. Re1+ {[%emt 0:00:00]} Kf8 {[%emt 0:00:34]} 80. Ra1 {[%emt 0:00:00]} Ra4 {[%emt 0:01:55]} 81. Kh5 {[%emt 0:00:00]} Ke7 {[%emt 0:02:22]} 82. Kg6 {[%emt 0:00:00]} Kf8 {[%emt 0:00:00]} 83. Kh5 {[%emt 0:00:00]} Ke7 {[%emt 0:02:41]} 84. Kg6 {[%emt 0:00:00]} Rg4+ {[%emt 0:00:07]} 85. Kh5 {[%emt 0:00:00]} Rg2 {[%emt 0:00:02]} 86. Kh4 {[%emt 0:00:00]} Kf6 {[%emt 0:00:05]} 87. Kh3 {[%emt 0:00:00]} Rb2 {[%emt 0:00:17]} 88. Kg4 {[%emt 0:00:00]} Rb4+ {[%emt 0:00:14]} 89. Kh5 {[%emt 0:00:00]} Ra4 {[%emt 0:00:31]} 90. Rf1 {[%emt 0:00:00]} a1=Q {[%emt 0:00:35]} 91. Rf4 {[%emt 0:00:00]} Qh1+ {[%emt 0:00:07]} 92. Kg4 {[%emt 0:00:00]} Qg2+ {[%emt 0:00:06]} 93. Kh4 {[%emt 0:00:00]} Rxf4+ {[%emt 0:00:05]} 94. Kh5 {[%emt 0:00:00]} Qh3# {[%emt 0:00:03]} 0-1

[Event "SWE-ch Juniors 2018"]
[Site "Ronneby"]
[Date "2018.07.08"]
[Round "9"]
[White "Kucuksari, Kaan"]
[Black "Sundin, Emanuel"]
[Result "1-0"]
[ECO "E06"]
[WhiteElo "2296"]
[BlackElo "2152"]
[Annotator "NA"]
[PlyCount "43"]
[EventDate "2018.06.30"]
[EventType "tourn"]
[EventCountry "SWE"]
[SourceTitle "playchess.com"]
[Source "ChessBase"]
[SourceQuality "1"]
[TimeControl "40/5400+30:1800+30"]

1. d4 {[%emt 0:00:00]} d5 {[%emt 0:00:00]} 2. Nf3 {[%emt 0:00:00]} Nf6 {[%emt 0:00:07]} 3. c4 {[%emt 0:00:00]} e6 {[%emt 0:00:25]} 4. g3 {[%emt 0:00:00]} Be7 {[%emt 0:00:16]} 5. Bg2 {[%emt 0:00:00]} O-O {[%emt 0:00:13]} 6. O-O {[%emt 0:00:00]} dxc4 {[%emt 0:00:51]} 7. Ne5 {[%emt 0:00:02] LiveBook: 1167 Partien} Qd6 {[%emt 0:01:37]} 8. Na3 {[%emt 0:05:39] E05: Open Catalan: 5 Nf3 Be7} Rd8 {[%emt 0:02:10]} 9. Nb5 {[%emt 0:03:22]} (9. Naxc4 Qa6 10. Qc2 Rxd4 11. Bg5 Nbd7 12. Rfd1 Rxd1+ 13. Rxd1 Nxe5 14. Nxe5 Qa5 15. Bf4 Nd5 {½-½ (54) Kramnik,V (2800)-Mamedyarov,S (2809) Berlin 2018}) 9... Qb6 {[%emt 0:07:00]} 10. a4 {[%emt 0:00:31]} Ne8 $146 {[%emt 0:17:16]} ({Predecessor:} 10... c6 $1 $11 {keeps the balance.} 11. Nxc4 Qa6 12. Nba3 Bxa3 13. Nxa3 e5 14. e3 Be6 15. b4 Qb6 {0-1 (37) Palatnik,S (2490)-Kuzmin,G (2535) Kiev (Ukraine) 1978}) 11. Nxc4 {[%emt 0:04:33]} Qa6 {[%emt 0:00:28]} 12. Qb3 {[%emt 0:06:14]} Nc6 {[%emt 0:11:58]} 13. Rd1 {[%emt 0:01:48]} Na5 {[%emt 0:06:40]} 14. Nxa5 {[%emt 0:03:47]} Qxa5 {[%emt 0:00:22]} 15. Bd2 {[%emt 0:04:52]} Qa6 {[%emt 0:05:41]} 16. Bb4 {[%emt 0:08:01]} Bd6 {[%emt 0:14:48]} 17. Nxd6 {[%emt 0:06:36]} cxd6 {[%emt 0:00:55]} 18. e3 {[%emt 0:05:42]} Bd7 {[%emt 0:05:53]} 19. Bf1 {[%emt 0:05:24]} Qc6 {[%emt 0:02:50]} 20. d5 $16 {[%emt 0:03:31]} exd5 {[%emt 0:02:50]} 21. Rdc1 {[%emt 0:00:41]} Qb6 {[%emt 0:03:18]} 22. a5 {[%emt 0:00:14]} 1-0

[Event "SWE-ch Juniors 2018"]
[Site "Ronneby"]
[Date "2018.07.08"]
[Round "9"]
[White "Sorensen, Hampus"]
[Black "Pantzar, Milton"]
[Result "1/2-1/2"]
[ECO "A50"]
[WhiteElo "2204"]
[BlackElo "2333"]
[Annotator "NA"]
[PlyCount "106"]
[EventDate "2018.06.30"]
[EventType "tourn"]
[EventCountry "SWE"]
[SourceTitle "playchess.com"]
[Source "ChessBase"]
[SourceQuality "1"]
[TimeControl "40/5400+30:1800+30"]

1. d4 {[%emt 0:00:00]} Nf6 {[%emt 0:00:00]} 2. c4 {[%emt 0:00:00]} b6 {[%emt 0:00:06]} 3. Nf3 {[%emt 0:01:57]} Bb7 {[%emt 0:00:10]} 4. Nc3 {[%emt 0:00:43]} e6 {[%emt 0:00:29]} 5. a3 {[%emt 0:00:33]} d5 {[%emt 0:00:38]} 6. cxd5 {[%emt 0:00:29]} Nxd5 {[%emt 0:00:09]} 7. Qc2 {[%emt 0:00:50]} Nxc3 {[%emt 0:01:21]} 8. bxc3 {[%emt 0:01:38]} Be7 {[%emt 0:01:16]} 9. e4 {[%emt 0:02:04]} O-O {[%emt 0:00:49]} 10. Bd3 {[%emt 0:00:41]} c5 {[%emt 0:00:33]} 11. O-O {[%emt 0:01:38]} Qc8 {[%emt 0:00:28]} 12. Qe2 {[%emt 0:04:28]} Ba6 {[%emt 0:02:19]} 13. Rd1 {[%emt 0:03:57]} Bxd3 {[%emt 0:04:29] E12: Queen's Indian: Unusual White 4th moves, 4 a3, 4 Nc3 Bb7 5 a3 and 4 Nc3 Bb7} 14. Rxd3 {[%emt 0:00:33] LiveBook: 77 Games} cxd4 {[%emt 0:00:37]} 15. cxd4 {[%emt 0:00:20]} Rd8 {[%emt 0:00:43]} 16. h4 {[%emt 0:08:39]} Nd7 {[%emt 0:11:41]} 17. Bg5 {[%emt 0:04:55]} Bxg5 {[%emt 0:05:02]} 18. hxg5 {[%emt 0:00:21]} Qa6 {[%emt 0:11:08]} 19. Rad1 {[%emt 0:02:20]} Rac8 {[%emt 0:03:20]} 20. Qe3 {[%emt 0:04:10] [#]} Nf8 $146 {[%emt 0:02:19]} ({Predecessor:} 20... Qa4 21. Qf4 {½-½ (34) Sokolov,I (2706)-Bologan,V (2679) Poikovsky 2004}) 21. Ne5 {[%emt 0:10:46]} Ng6 {[%emt 0:03:09]} 22. Nxg6 {[%emt 0:03:32]} hxg6 {[%emt 0:00:56]} 23. Qf4 {[%emt 0:10:42]} Qa4 {[%emt 0:04:59]} 24. Qg4 {[%emt 0:10:04]} Rc4 {[%emt 0:06:59]} 25. e5 {[%emt 0:00:35]} Rd5 {[%emt 0:09:11]} 26. Kh2 {[%emt 0:01:47]} Qc2 {[%emt 0:06:36]} 27. Qf3 {[%emt 0:08:19]} Qb2 {[%emt 0:05:21]} 28. R1d2 {[%emt 0:02:45]} Qa1 {[%emt 0:01:07]} 29. Rd1 {[%emt 0:02:06]} Rc1 {[%emt 0:03:47]} 30. Rxc1 {[%emt 0:00:54]} Qxc1 {[%emt 0:00:02]} 31. Qe3 {[%emt 0:00:40]} Qc6 {[%emt 0:05:27]} 32. Rc3 {[%emt 0:01:31]} Qd7 {[%emt 0:01:26]} 33. Rd3 {[%emt 0:00:04]} Qa4 {[%emt 0:01:08]} 34. Qd2 {[%emt 0:04:27]} Qc4 {[%emt 0:00:52]} 35. Qe3 {[%emt 0:00:09]} Rd8 {[%emt 0:00:51]} 36. Qd2 {[%emt 0:02:11]} Qd5 {[%emt 0:02:07]} 37. Qf4 {[%emt 0:01:21]} Qc4 {[%emt 0:00:59]} 38. Qd2 {[%emt 0:00:15]} b5 {[%emt 0:01:42]} 39. Kg1 {[%emt 0:02:12]} Rd7 {[%emt 0:01:30]} 40. Qd1 {[%emt 0:00:45]} a5 {[%emt 0:01:07]} 41. Qf3 {[%emt 0:05:26]} Rd5 {[%emt 0:03:33]} 42. Qd1 {[%emt 0:05:38]} Rd8 {[%emt 0:04:19]} 43. Kh2 $15 {[%emt 0:01:15]} b4 {[%emt 0:06:12]} 44. axb4 {[%emt 0:01:05]} axb4 {[%emt 0:00:05]} 45. g3 {[%emt 0:03:54]} Qd5 {[%emt 0:02:32]} 46. Qc2 {[%emt 0:03:45]} Ra8 {[%emt 0:02:15]} 47. Qc5 {[%emt 0:02:16]} Qe4 {[%emt 0:03:21]} 48. Re3 {[%emt 0:00:11]} Qb7 {[%emt 0:01:44]} 49. Rb3 {[%emt 0:02:03]} Rb8 {[%emt 0:02:01]} 50. Qd6 {[%emt 0:00:48]} Kh7 {[%emt 0:01:51]} 51. Qc5 {[%emt 0:03:19]} Rh8 {[%emt 0:03:22]} 52. d5 {[%emt 0:03:18]} Rc8 {[%emt 0:04:19]} 53. Rxb4 {[%emt 0:00:11]} Rxc5 {[%emt 0:00:35]} 1/2-1/2

[Event "SWE-ch Juniors 2018"]
[Site "Ronneby"]
[Date "2018.07.08"]
[Round "9"]
[White "Emmoth, Alfons"]
[Black "Crevatin, Leo"]
[Result "1/2-1/2"]
[ECO "D45"]
[WhiteElo "2176"]
[BlackElo "2224"]
[Annotator "NA"]
[PlyCount "35"]
[EventDate "2018.06.30"]
[EventType "tourn"]
[EventCountry "SWE"]
[SourceTitle "playchess.com"]
[Source "ChessBase"]
[SourceQuality "1"]
[TimeControl "40/5400+30:1800+30"]

{[%evp 8,34,12,10,19,3,20,-1,0,32767,32767,8,32767,25,37,40,32767,20,32767,53,32767,-17,32767,0,32767,0,0,4,5]} 1. d4 {[%emt 0:00:00]} d5 {[%emt 0:00:24]} 2. c4 {[%emt 0:00:00]} e6 {[%emt 0:00:35]} 3. Nc3 {[%emt 0:00:00]} c6 {[%emt 0:00:05]} 4. e3 {[%emt 0:00:17]} Nf6 {[%emt 0:00:06]} 5. Nf3 {[%emt 0:00:10]} Nbd7 {[%emt 0:00:08]} 6. Qc2 {[%emt 0:00:14]} Bd6 {[%emt 0:00:07]} 7. Bd3 {[%emt 0:00:11]} dxc4 {[%emt 0:00:05]} 8. Bxc4 {[%emt 0:00:07]} O-O {[%emt 0:00:07]} 9. O-O {[%emt 0:00:10]} e5 {[%emt 0:01:39]} 10. Rd1 {[%emt 0:01:33]} Qc7 {[%emt 0:02:58]} 11. h3 {[%emt 0:02:10] LiveBook: 8 Games D46: Semi-Slav: 5 e3 Nbd7 6 Bd3, Black avoids the Meran} h6 {[%emt 0:02:04]} 12. a3 {[%emt 0:02:42]} a5 {[%emt 0:06:42]} (12... Re8 13. Ba2 a6 14. b4 exd4 15. Nxd4 Nb6 16. Bb2 Qe7 17. Rd2 Bc7 18. Nf5 Bxf5 19. Qxf5 {½-½ (53) Parligras,M (2603)-Delchev,A (2588) Konya 2017}) 13. Ba2 {[%emt 0:04:35]} Re8 {[%emt 0:03:01]} 14. Nh4 {[%emt 0:04:54]} (14. dxe5 $14 Bxe5 15. Nxe5 Qxe5 16. e4) 14... Nf8 {[%emt 0:07:56]} 15. Nf5 $146 {[%emt 0:04:27]} ({Predecessor:} 15. Bd2 e4 16. g4 Qe7 17. Ng2 N6h7 18. Nf4 Ng5 {½-½ (60) Hajnal,G (2096)-Lengyel,F (2296) Hungary 2001}) 15... Be6 {[%emt 0:03:01]} 16. Nxd6 {[%emt 0:04:41]} Qxd6 {[%emt 0:00:02]} 17. Bxe6 {[%emt 0:00:16]} Nxe6 $11 {[%emt 0:02:35]} 18. dxe5 {[%emt 0:02:49]} 1/2-1/2

[Event "SWE-ch Juniors 2018"]
[Site "Ronneby"]
[Date "2018.07.08"]
[Round "9"]
[White "Berglind, Axel"]
[Black "Carlsson, Ludvig"]
[Result "0-1"]
[ECO "A45"]
[WhiteElo "2096"]
[BlackElo "2169"]
[Annotator "NA"]
[PlyCount "50"]
[EventDate "2018.06.30"]
[EventType "tourn"]
[EventCountry "SWE"]
[SourceTitle "playchess.com"]
[Source "ChessBase"]
[SourceQuality "1"]
[TimeControl "40/5400+30:1800+30"]

1. d4 {[%emt 0:03:24]} Nf6 {[%emt 0:00:00]} 2. Bg5 {[%emt 0:00:03]} g6 {[%emt 0:00:00]} 3. Bxf6 {[%emt 0:00:11]} exf6 {[%emt 0:00:02]} 4. g3 {[%emt 0:00:19]} d5 {[%emt 0:00:06]} 5. Bg2 {[%emt 0:00:06]} c6 {[%emt 0:00:16]} 6. Nf3 {[%emt 0:00:18]} Bd6 {[%emt 0:04:58]} 7. O-O {[%emt 0:00:13]} f5 {[%emt 0:02:19]} 8. c4 {[%emt 0:02:29]} dxc4 {[%emt 0:02:12]} 9. Nfd2 {[%emt 0:00:15]} Be6 {[%emt 0:01:03]} 10. Qc2 {[%emt 0:00:25]} h5 {[%emt 0:01:44]} 11. Nxc4 {[%emt 0:01:18]} Bc7 {[%emt 0:03:23]} 12. Rd1 {[%emt 0:02:35]} h4 {[%emt 0:01:29]} 13. d5 {[%emt 0:01:39]} cxd5 $14 {[%emt 0:00:14]} 14. Ne3 {[%emt 0:00:43]} hxg3 {[%emt 0:02:58]} 15. hxg3 {[%emt 0:00:06]} Nd7 {[%emt 0:03:31]} 16. Bxd5 {[%emt 0:01:31]} Bb6 {[%emt 0:08:45]} 17. Bxe6 {[%emt 0:07:08]} fxe6 {[%emt 0:01:13]} 18. Qd3 {[%emt 0:12:15]} Qe7 {[%emt 0:02:04]} 19. Nc3 {[%emt 0:01:23]} Qh7 {[%emt 0:00:16]} 20. Qxd7+ {[%emt 0:01:12]} Qxd7 {[%emt 0:00:06]} 21. Rxd7 {[%emt 0:00:08]} Kxd7 {[%emt 0:00:04]} 22. Nc4 {[%emt 0:00:09]} Rh3 {[%emt 0:00:24]} 23. Kg2 {[%emt 0:00:09]} Rah8 {[%emt 0:00:07]} 24. Ne5+ {[%emt 0:00:23]} Ke8 {[%emt 0:00:37]} 25. Nf3 {[%emt 0:00:09]} g5 {[%emt 0:00:07]} 0-1

[Event "SWE-ch Juniors 2018"]
[Site "Ronneby"]
[Date "2018.07.08"]
[Round "9"]
[White "Forsberg, Andre"]
[Black "Storme, Isak"]
[Result "1/2-1/2"]
[ECO "B56"]
[WhiteElo "2025"]
[BlackElo "2277"]
[Annotator "NA"]
[PlyCount "56"]
[EventDate "2018.06.30"]
[EventType "tourn"]
[EventCountry "SWE"]
[SourceTitle "playchess.com"]
[Source "ChessBase"]
[SourceQuality "1"]
[TimeControl "40/5400+30:1800+30"]

1. e4 {[%emt 0:00:20]} c5 {[%emt 0:00:00]} 2. Nf3 {[%emt 0:00:06]} Nc6 {[%emt 0:00:00]} 3. d4 {[%emt 0:00:05]} cxd4 {[%emt 0:00:00]} 4. Nxd4 {[%emt 0:00:03]} Nf6 {[%emt 0:00:00]} 5. Nc3 {[%emt 0:00:06]} d6 {[%emt 0:00:01]} 6. f3 {[%emt 0:00:04]} Nxd4 {[%emt 0:01:09] LiveBook: 76 Partien} (6... e5 $11 7. Nb3 Be6) 7. Qxd4 {[%emt 0:00:13]} g6 {[%emt 0:00:09] B56: Classical Sicilian: Unusual Lines} 8. Bb5+ {[%emt 0:08:16]} (8. Bg5 Bg7 9. Bb5+ Bd7 10. Bxd7+ Qxd7 11. O-O-O O-O 12. Qd3 Qe6 13. Kb1 Rfc8 14. h4 Rc4 15. Nd5 {½-½ (15) Kryvoruchko,Y (2628)-Miroshnichenko,E (2593) Kallithea 2008}) 8... Bd7 {[%emt 0:01:03]} 9. Bxd7+ {[%emt 0:00:05]} Qxd7 {[%emt 0:00:49]} 10. Nd5 {[%emt 0:00:14]} Bg7 {[%emt 0:01:39]} 11. Bg5 {[%emt 0:00:44]} O-O {[%emt 0:17:10]} (11... Nh5 $1 $11 12. Qd2 e6) 12. Nxf6+ {[%emt 0:04:30]} exf6 {[%emt 0:00:06]} 13. Bxf6 {[%emt 0:00:09]} Bxf6 {[%emt 0:00:14]} 14. Qxf6 {[%emt 0:00:11]} Rac8 {[%emt 0:01:35]} 15. c3 {[%emt 0:07:57]} d5 $146 {[%emt 0:02:54]} 16. O-O {[%emt 0:08:03]} dxe4 {[%emt 0:00:08]} 17. fxe4 {[%emt 0:00:19]} Rce8 {[%emt 0:09:29]} 18. Rad1 {[%emt 0:18:03]} Qa4 {[%emt 0:05:00]} 19. a3 {[%emt 0:03:14]} Qxe4 {[%emt 0:02:51]} ({Black should try} 19... Rxe4 $11 20. Rd8 Ree8) 20. Rd7 {[%emt 0:00:54]} Qe3+ {[%emt 0:10:25]} 21. Qf2 {[%emt 0:04:30]} Qxf2+ {[%emt 0:01:27]} 22. Kxf2 {[%emt 0:00:37]} Re6 {[%emt 0:08:20]} 23. Rxb7 {[%emt 0:01:00]} Rd8 {[%emt 0:00:54]} 24. Kg3 {[%emt 0:22:29]} f5 {[%emt 0:06:01]} (24... Re2 $142) 25. c4 {[%emt 0:06:50]} Rd2 $16 {[%emt 0:15:43]} 26. Rf2 {[%emt 0:04:31]} Re3+ {[%emt 0:00:26]} 27. Kf4 {[%emt 0:00:53]} Re4+ {[%emt 0:00:11]} 28. Kg3 {[%emt 0:00:05]} Re3+ {[%emt 0:00:08]} 1/2-1/2